{"text_format":"1","workbook":"xlsx","n_sheets":3,"sheets":["Listas","Instrucciones","32"],"not_rendered":{"charts":0,"images":1,"macros":1,"external_links":0,"defined_names":8,"comments":0,"pivot_tables":0},"unopened":[],"bounds":{"document_bytes":16777216,"sheet_cells":100000,"rows_first":2000,"rows_last":500,"rows_between":2000,"halvings":0,"cell_chars":16384,"cell_head_chars":4096},"cells_cut":0,"cells_raw":0,"read":"whole","date_system":"1900"}

{"sheet":"Listas","index":0,"n_rows":5,"n_cols":4,"rows_kept":5,"cut":false,"hidden":true,"merged":[]}
["Sentido","Ascendente","Descendente","No definido"]
["ascendente","acumulado","acumulado","maximo permisible"]
["descendente","no acumulado","no acumulado","minimo permisible"]
["no_definido","seleccionar","seleccionar","seleccionar"]
["seleccionar"]

{"sheet":"Instrucciones","index":1,"n_rows":5,"n_cols":4,"rows_kept":5,"cut":false,"hidden":false,"merged":[[4,1,4,8],[5,1,48,8]]}
[]
[null,null,null,"Centro Nacional de Planeamiento Estratégico"]
[null,null,null,"Dirección Nacional de Seguimiento y Evaluación (DNSE)"]
[]
[null,"Guía para completar el reporte de seguimiento"]

{"sheet":"32","index":2,"n_rows":190,"n_cols":15,"rows_kept":190,"cut":false,"hidden":false,"merged":[[1,1,2,6],[12,4,13,4],[8,8,8,9],[1,8,1,15],[12,5,13,5],[12,6,13,6],[12,7,12,8],[12,1,13,1],[12,2,13,2],[12,3,13,3],[4,8,4,9],[6,8,6,9],[12,9,12,10],[12,11,12,12]]}
[]
[null,"REPORTE DE SEGUIMIENTO DE LA POLÍTICA NACIONAL DE DESARROLLO INDUSTRIAL",null,null,null,null,null,null,"Sémaforo del nivel de cumplimiento del Avance Tipo 1, por elemento"]
[]
[null,null,null,null,null,null,null,null,null,null,"[0-75%>","[75-95%>","≥ 95%","ND","Total"]
[null,"Sector:","38: PRODUCCION",null,null,null,null,null,"Objetivos prioritarios",null,{"$f":"COUNTIFS(B15:B174,\"=OP*\",N15:N174,\"<75\",N15:N174,\"<>ND\")","v":0},{"$f":"COUNTIFS(B15:B174,\"=OP*\",N15:N174,\">=75\",N15:N174,\"<95\",N15:N174,\"<>ND\")","v":2},{"$f":"COUNTIFS(B15:B174,\"=OP*\",N15:N174,\">=95\",N15:N174,\"<>ND\")","v":0},{"$f":"COUNTIFS(B15:B174,\"=OP*\",N15:N174,\"=ND\")","v":2},{"$f":"COUNTIFS(B15:B174,\"=OP*\")","v":4}]
[]
[null,"Ministerio conductor:","038: M. DE LA PRODUCCION",null,null,null,null,null,"Indicadores de objetivos prioritarios",null,{"$f":"COUNTIFS(B15:B174,\"=IOP*\",N15:N174,\"<75\",N15:N174,\"<>ND\")","v":0},{"$f":"COUNTIFS(B15:B174,\"=IOP*\",N15:N174,\">=75\",N15:N174,\"<95\",N15:N174,\"<>ND\")","v":2},{"$f":"COUNTIFS(B15:B174,\"=IOP*\",N15:N174,\">=95\",N15:N174,\"<>ND\")","v":0},{"$f":"COUNTIFS(B15:B174,\"=IOP*\",N15:N174,\"=ND\")","v":3},{"$f":"COUNTIFS(B15:B174,\"=IOP*\")","v":5}]
[]
[null,"Tipo:","SECTORIAL",null,null,null,null,null,"Indicadores de servicios",null,{"$f":"COUNTIFS(B15:B174,\"=ISS*\",N15:N174,\"<75\",N15:N174,\"<>ND\")","v":14},{"$f":"COUNTIFS(B15:B174,\"=ISS*\",N15:N174,\">=75\",N15:N174,\"<95\",N15:N174,\"<>ND\")","v":3},{"$f":"COUNTIFS(B15:B174,\"=ISS*\",N15:N174,\">=95\",N15:N174,\"<>ND\")","v":37},{"$f":"COUNTIFS(B15:B174,\"=ISS*\",N15:N174,\"=ND\")","v":32},{"$f":"COUNTIFS(B15:B174,\"=ISS*\")","v":86}]
[]
[]
[]
[null,"Código","Objetivo prioritario / \nLineamiento / \nServicio / \nIndicador","Responsable de indicador","Tipo de indicador / Estándar de cumplimiento","Sentido esperado","Tipo de agregación","Linea base",null,"Logros esperados",null,"Valores obtenidos",null,"Avance Tipo 1\n(%)","Avance Tipo 2\n(%)"]
[null,null,null,null,null,null,null,"Año","valor",2022,2023,2022,2023,2023,2023]
[null,"OP.01","Incrementar la productividad de las empresas del sector manufactura",null,null,null,null,null,null,null,null,null,null,{"$f":"+AvanceObjetivo(N16:N16)","v":88.922882160565464},{"$f":"+AvanceObjetivo(O16:O16)","v":0}]
[null,"IOP.01.01","Ratio de Valor agregado bruto de empresas del sector manufacturero por trabajador","OGEEIE","RESULTADO","ascendente","no acumulado",2019,44328,45836,47395,50847,42145,{"$f":"+AvanceTipo1(F16,G16,K16,M16)","v":88.922882160565464},{"$f":"+AvanceTipo2(F16,G16,I16,J16:K16,L16:M16)","v":-71.177045973263773}]
[null,"LN.01.01","Fortalecer los instrumentos financieros tradicionales y alternativos acorde con las necesidades y tamaño de las empresas del sector manufactura"]
[null,"SS.01.01.01","Desarrollo de instrumentos financieros que promuevan el acceso al sistema financiero a las empresas"]
[null,"ISS.01.01.01.01","Número de instrumentos financieros desarrollados para el sector manufactura que promueven el acceso al sistema financiero","DGDE","CALIDAD","no_definido","minimo permisible",2021,0,null,1,null,3,{"$f":"+AvanceTipo1(F19,G19,K19,M19)","v":100},{"$f":"+AvanceTipo2(F19,G19,I19,J19:K19,L19:M19)","v":"Registrar"}]
[null,"ISS.01.01.01.02","Porcentaje de empresas que logran utilizar los instrumentos financieros pertinentes que promueven el acceso al sistema financiero.","DGDE","COBERTURA","ascendente","no acumulado",2021,0,null,0.2,null,0.28000000000000003,{"$f":"+AvanceTipo1(F20,G20,K20,M20)","v":140},{"$f":"+AvanceTipo2(F20,G20,I20,J20:K20,L20:M20)","v":"Registrar"}]
[null,"LN.01.02","Fortalecer los mecanismos de formalización en las empresas del sector manufactura"]
[null,"SS.01.02.01","Acciones de fiscalización confiables a empresas sujetas a la normativa de Industria a nivel nacional"]
[null,"ISS.01.02.01.02","Porcentaje de empresas que son fiscalizadas de manera confiable en la normativa de industrial a nivel nacional.","DGSFS","CALIDAD","ascendente","no acumulado",2021,0,null,0.9,1,1,{"$f":"+AvanceTipo1(F23,G23,K23,M23)","v":111.11111111111111},{"$f":"+AvanceTipo2(F23,G23,I23,J23:K23,L23:M23)","v":"Registrar"}]
[null,"ISS.01.02.01.01","Número de acciones de fiscalización efectuadas.","DGSFS","COBERTURA","ascendente","no acumulado",2021,367,null,365,348,281,{"$f":"+AvanceTipo1(F24,G24,K24,M24)","v":76.986301369863014},{"$f":"+AvanceTipo2(F24,G24,I24,J24:K24,L24:M24)","v":"Registrar"}]
[null,"LN.01.03","Mejorar los instrumentos en materia de gestión empresarial de acuerdo con las necesidades de las empresas del sector manufactura"]
[null,"SS.01.03.01","Fortalecimiento de capacidades de gestión empresarial e innovación pertinentes para las empresas"]
[null,"ISS.01.03.01.01","Porcentaje de empresas manufactureras que participan en capacitaciones pertinentes en gestión empresarial e innovación","PNTE","CALIDAD","ascendente","no acumulado",2021,0,null,0.5,0.63,0.19,{"$f":"+AvanceTipo1(F27,G27,K27,M27)","v":38},{"$f":"+AvanceTipo2(F27,G27,I27,J27:K27,L27:M27)","v":"Registrar"}]
[null,"ISS.01.03.01.02","Número de empresas que reciben servicios para el fortalecimiento de sus capacidades en gestión empresarial e innovación","PNTE","COBERTURA","ascendente","no acumulado",2021,0,null,2000,712,217,{"$f":"+AvanceTipo1(F28,G28,K28,M28)","v":10.85},{"$f":"+AvanceTipo2(F28,G28,I28,J28:K28,L28:M28)","v":"Registrar"}]
[null,"SS.01.03.02","Fortalecimiento de capacidades en la gestión ambiental pertinentes para las empresas."]
[null,"ISS.01.03.02.01","Porcentaje de empresas que acceden a capacitaciones en gestión ambiental","DGAAMI","CALIDAD","ascendente","no acumulado",2021,0,null,0.5,null,0.59,{"$f":"+AvanceTipo1(F30,G30,K30,M30)","v":118},{"$f":"+AvanceTipo2(F30,G30,I30,J30:K30,L30:M30)","v":"Registrar"}]
[null,"ISS.01.03.02.02","Número de instrumentos de capacitaciones en gestión ambiental desarrollados","DGAAMI","COBERTURA","no_definido","minimo permisible",2021,0,null,1,null,3,{"$f":"+AvanceTipo1(F31,G31,K31,M31)","v":100},{"$f":"+AvanceTipo2(F31,G31,I31,J31:K31,L31:M31)","v":"Registrar"}]
[null,"SS.01.03.03","Asistencia técnica en Buenas Prácticas de Manufactura (BPM) para las empresas"]
[null,"ISS.01.03.03.02","Porcentaje de empresas que aplican buenas prácticas de manufactura (BPM)","DGDE","CALIDAD","ascendente","no acumulado",2021,0,null,0.5,1,1,{"$f":"+AvanceTipo1(F33,G33,K33,M33)","v":200},{"$f":"+AvanceTipo2(F33,G33,I33,J33:K33,L33:M33)","v":"Registrar"}]
[null,"ISS.01.03.03.01","Número de empresas que reciben asistencia técnica pertinente en buenas prácticas de manufactura (BPM)","DGDE","COBERTURA","ascendente","no acumulado",2021,0,null,2000,202,103,{"$f":"+AvanceTipo1(F34,G34,K34,M34)","v":5.1499999999999995},{"$f":"+AvanceTipo2(F34,G34,I34,J34:K34,L34:M34)","v":"Registrar"}]
[null,"SS.01.03.04","Asistencia técnica para la incorporación de tecnología y digitalización de procesos productivos en las empresas"]
[null,"ISS.01.03.04.02","Porcentaje de empresas que incorporan tecnología o digitalizan en sus procesos productivos","PNTE - ITP","CALIDAD","ascendente","no acumulado",2021,0,null,0.5,null,"ND",{"$f":"+AvanceTipo1(F36,G36,K36,M36)","v":"ND"},{"$f":"+AvanceTipo2(F36,G36,I36,J36:K36,L36:M36)","v":"Registrar"}]
[null,"ISS.01.03.04.01","Número empresas que reciben asistencia técnica pertinente para la incorporar tecnología y digitalización de sus procesos productivos.","PNTE - ITP","COBERTURA","ascendente","no acumulado",2021,0,null,2000,3,35,{"$f":"+AvanceTipo1(F37,G37,K37,M37)","v":1.7500000000000002},{"$f":"+AvanceTipo2(F37,G37,I37,J37:K37,L37:M37)","v":"Registrar"}]
[null,"SS.01.03.05","Instrumentos orientados a la gestión empresarial, tecnología, digitalización o innovación dirigidos a las empresas"]
[null,"ISS.01.03.05.02","Porcentaje de instrumentos nuevos o actualizado implementados a través de entidades ejecutoras","DGITDF","CALIDAD","ascendente","no acumulado",2021,0,null,"ND",0.45,1,{"$f":"+AvanceTipo1(F39,G39,K39,M39)","v":"ND"},{"$f":"+AvanceTipo2(F39,G39,I39,J39:K39,L39:M39)","v":"Registrar"}]
[null,"ISS.01.03.05.01","Número de instrumentos orientados a la gestión empresarial, tecnología, digitalización o innovación dirigidos a las empresas implementados o actualizados","DGITDF","CALIDAD","ascendente","no acumulado",2021,0,null,"ND",7,9,{"$f":"+AvanceTipo1(F40,G40,K40,M40)","v":"ND"},{"$f":"+AvanceTipo2(F40,G40,I40,J40:K40,L40:M40)","v":"Registrar"}]
[null,"LN.01.04","Fortalecer la oferta formativa y de capacitación laboral acorde con las necesidades de las empresas del sector manufactura"]
[null,"SS.01.04.01","Programa de capacitación técnico productiva pertinente para empresarios/as y trabajadores/as"]
[null,"ISS.01.04.01.02","Porcentaje de empresas regionales que participan en programas de capacitación técnico-productiva","DGDE","CALIDAD","ascendente","no acumulado",2021,0,null,0.75,1.2130000000000001,0.67900000000000005,{"$f":"+AvanceTipo1(F43,G43,K43,M43)","v":90.533333333333346},{"$f":"+AvanceTipo2(F43,G43,I43,J43:K43,L43:M43)","v":"Registrar"}]
[null,"ISS.01.04.01.01","Número de programas de capacitación para fortalecer las capacidades en materia técnico-productiva a los/as empresarios/as y trabajadores/as del sector.","DGDE","COBERTURA","no_definido","minimo permisible",2021,0,null,1,null,10,{"$f":"+AvanceTipo1(F44,G44,K44,M44)","v":100},{"$f":"+AvanceTipo2(F44,G44,I44,J44:K44,L44:M44)","v":"Registrar"}]
[null,"SS.01.04.02","Programas de estudio de la Educación Superior Tecnológica y Técnico productiva vinculados con la industria manufacturera"]
[null,"ISS.01.04.02.02","Porcentaje de egresados vinculados a la industria manufacturera que obtuvieron el grado de bachiller o título en instituciones de la Educación Superior Tecnológica (EST)","MINEDU","CALIDAD","ascendente","no acumulado",2021,3.1E-2,null,3.3000000000000002E-2,2.2599999999999999E-2,2.41E-2,{"$f":"+AvanceTipo1(F46,G46,K46,M46)","v":73.030303030303017},{"$f":"+AvanceTipo2(F46,G46,I46,J46:K46,L46:M46)","v":"Registrar"}]
[null,"ISS.01.04.02.01","Número de programas de estudio de la Educación Superior Tecnológica y Técnico-productivos vinculados con la industria manufacturera publicados en el Catálogo Nacional de la Oferta Formativa","MINEDU","COBERTURA","no_definido","minimo permisible",2021,0,null,1,12,0,{"$f":"+AvanceTipo1(F47,G47,K47,M47)","v":0},{"$f":"+AvanceTipo2(F47,G47,I47,J47:K47,L47:M47)","v":"Registrar"}]
[null,"SS.01.04.03","Instrumentos financieros y no financieros para mejorar las capacidades productivas en tecnología del capital humano para las empresas del sector manufacturero"]
[null,"ISS.01.04.03.01","Número de Instrumentos de apoyo financieros y no financieros nuevos desarrollados con enfoque inclusivo para mejorar las capacidades productivas en tecnología del capital humano para las empresas del sector manufacturero","DGDE","COBERTURA","ascendente","no acumulado",2021,0,null,2,null,"ND",{"$f":"+AvanceTipo1(F49,G49,K49,M49)","v":"ND"},{"$f":"+AvanceTipo2(F49,G49,I49,J49:K49,L49:M49)","v":"Registrar"}]
[null,"ISS.01.04.03.02","Número de Instrumentos de apoyo financieros y no financieros nuevos desarrollados para mejorar las capacidades productivas en tecnología del capital humano para las empresas del sector manufacturero","DGDE","CALIDAD","ascendente","no acumulado",2021,0,null,1,null,"ND",{"$f":"+AvanceTipo1(F50,G50,K50,M50)","v":"ND"},{"$f":"+AvanceTipo2(F50,G50,I50,J50:K50,L50:M50)","v":"Registrar"}]
[null,"SS.01.04.04","Certificación oportuna de competencias laborales en trabajadores/as de empresas de la industria manufacturera"]
[null,"ISS.01.04.04.02","Porcentaje de trabajadores/as que recibieron el certificado de competencias laborales de forma oportuna","MTPE","CALIDAD","ascendente","no acumulado",2021,0,null,"ND",0.96,0.95,{"$f":"+AvanceTipo1(F52,G52,K52,M52)","v":"ND"},{"$f":"+AvanceTipo2(F52,G52,I52,J52:K52,L52:M52)","v":"Registrar"}]
[null,"ISS.01.04.04.01","Número de trabajadores/as de la industria manufacturera que certifican sus competencias laborales","MTPE","COBERTURA","ascendente","no acumulado",2021,0,null,2000,575,389,{"$f":"+AvanceTipo1(F53,G53,K53,M53)","v":19.45},{"$f":"+AvanceTipo2(F53,G53,I53,J53:K53,L53:M53)","v":"Registrar"}]
[null,"LN.01.06","Incrementar los servicios para la absorción y adaptación tecnológica en materia de innovación, Industria 4.0, digitalización y economía circular en las empresas del sector manufactura"]
[null,"SS.01.06.01","Certificación ambiental oportuna para proyecto de inversión de las empresas del sector manufactura no primaria"]
[null,"ISS.01.06.01.01","Porcentaje de empresas que reciben certificación ambiental de sus proyectos de inversión de manera oportuna","DGAAMI","CALIDAD","ascendente","no acumulado",2021,1,null,1,null,1,{"$f":"+AvanceTipo1(F56,G56,K56,M56)","v":100},{"$f":"+AvanceTipo2(F56,G56,I56,J56:K56,L56:M56)","v":"Registrar"}]
[null,"ISS.01.06.01.02","Número de empresas manufactureras que acceden a certificaciones ambientales para sus proyectos de inversión","DGAAMI","COBERTURA","ascendente","no acumulado",2021,24,null,26,null,32,{"$f":"+AvanceTipo1(F57,G57,K57,M57)","v":123.07692307692308},{"$f":"+AvanceTipo2(F57,G57,I57,J57:K57,L57:M57)","v":"Registrar"}]
[null,"SS.01.06.02","Fondos de cofinanciamiento en innovación apropiados para las empresas del sector manufactura no primaria"]
[null,"ISS.01.06.02.02","Porcentaje de empresas con alto grado de satisfacción respecto a la participación en los fondos de cofinanciamiento en innovación","PROINNOVATE","CALIDAD","ascendente","no acumulado",2020,0,null,0.7,null,0.94,{"$f":"+AvanceTipo1(F59,G59,K59,M59)","v":134.28571428571431},{"$f":"+AvanceTipo2(F59,G59,I59,J59:K59,L59:M59)","v":"Registrar"}]
[null,"ISS.01.06.02.01","Número de proyectos innovadores financiados a empresas del sector manufactura no primaria.","PROINNOVATE","COBERTURA","ascendente","no acumulado",2020,120,null,138,null,219,{"$f":"+AvanceTipo1(F60,G60,K60,M60)","v":158.69565217391303},{"$f":"+AvanceTipo2(F60,G60,I60,J60:K60,L60:M60)","v":"Registrar"}]
[null,"SS.01.06.03","Fondos concursables apropiados para incrementar la transferencia tecnológica a las empresas del sector manufactura no primaria"]
[null,"ISS.01.06.03.02","Porcentaje de empresas con alto grado de satisfacción respecto a la participación en los fondos concursables de transferencia tecnológica","PROINNOVATE","CALIDAD","ascendente","no acumulado",2021,0,null,0.7,null,0.93,{"$f":"+AvanceTipo1(F62,G62,K62,M62)","v":132.85714285714286},{"$f":"+AvanceTipo2(F62,G62,I62,J62:K62,L62:M62)","v":"Registrar"}]
[null,"ISS.01.06.03.01","Número de proyectos de transferencia tecnológica a las empresas del sector manufactura no primaria","PROINNOVATE","COBERTURA","ascendente","no acumulado",2021,100,null,120,null,0,{"$f":"+AvanceTipo1(F63,G63,K63,M63)","v":0},{"$f":"+AvanceTipo2(F63,G63,I63,J63:K63,L63:M63)","v":"Registrar"}]
[null,"SS.01.06.04","Fortalecimiento de capacidades apropiadas para la introducción a la innovación para las empresas del sector manufactura no primaria"]
[null,"ISS.01.06.04.02","Porcentaje de empresas con alto grado de satisfacción percibido respecto a la participación en los instrumentos de transferencia tecnológica en Industria 4.0; Digitalización e Innovación por parte de los CITE","ITP","CALIDAD","ascendente","no acumulado",2021,0.7,null,0.75,null,"ND",{"$f":"+AvanceTipo1(F65,G65,K65,M65)","v":"ND"},{"$f":"+AvanceTipo2(F65,G65,I65,J65:K65,L65:M65)","v":"Registrar"}]
[null,"ISS.01.06.04.01","Número de empresas que reciben los servicios de transferencia tecnológica en innovación: Industria 4.0 y Digitalización por parte de los CITE","ITP","COBERTURA","ascendente","no acumulado",2021,120,null,138,59,118,{"$f":"+AvanceTipo1(F66,G66,K66,M66)","v":85.507246376811594},{"$f":"+AvanceTipo2(F66,G66,I66,J66:K66,L66:M66)","v":"Registrar"}]
[null,"SS.01.06.05","Programa de adopción de buenas prácticas de economía circular con pertinencia en las empresas del sector manufactura no primaria"]
[null,"ISS.01.06.05.01","Porcentaje de empresas manufactureras que logran adoptar prácticas de economía circular pertinentes luego de recibir las capacitaciones y asistencias técnicas","DGAAMI","CALIDAD","ascendente","no acumulado",2021,0,null,0.45,null,"ND",{"$f":"+AvanceTipo1(F68,G68,K68,M68)","v":"ND"},{"$f":"+AvanceTipo2(F68,G68,I68,J68:K68,L68:M68)","v":"Registrar"}]
[null,"ISS.01.06.05.02","Número de empresas que participan en redes de simbiosis industrial pertinentes","DGAAMI","CALIDAD","ascendente","no acumulado",2021,0,null,15,null,78,{"$f":"+AvanceTipo1(F69,G69,K69,M69)","v":520},{"$f":"+AvanceTipo2(F69,G69,I69,J69:K69,L69:M69)","v":"Registrar"}]
[null,"ISS.01.06.05.03","Número de empresas que reciben servicios para adopción de buenas prácticas de economía circular","DGAAMI","COBERTURA","ascendente","no acumulado",2021,0,null,180,null,206,{"$f":"+AvanceTipo1(F70,G70,K70,M70)","v":114.44444444444444},{"$f":"+AvanceTipo2(F70,G70,I70,J70:K70,L70:M70)","v":"Registrar"}]
[null,"LN.01.07","Implementar medidas para incrementar el uso de los estándares de calidad en procesos y productos (bienes y/o servicios) en las empresas del sector manufactura"]
[null,"SS.01.07.01","Fortalecimiento de capacidades para la adopción de estándares de calidad pertinentes para empresarios/as y trabajadores/as del sector manufactura"]
[null,"ISS.01.07.01.02","Porcentaje de empresas manufactureras que logran adoptar estándares de calidad pertinentes luego de recibir la asistencia técnica.","ITP","CALIDAD","ascendente","no acumulado",2021,0,null,0.25,null,"ND",{"$f":"+AvanceTipo1(F73,G73,K73,M73)","v":"ND"},{"$f":"+AvanceTipo2(F73,G73,I73,J73:K73,L73:M73)","v":"Registrar"}]
[null,"ISS.01.07.01.01","Número de empresas que reciben servicios para adopción de estándares de calidad de bienes y servicios","ITP","COBERTURA","ascendente","no acumulado",2021,0,null,180,24,30,{"$f":"+AvanceTipo1(F74,G74,K74,M74)","v":16.666666666666664},{"$f":"+AvanceTipo2(F74,G74,I74,J74:K74,L74:M74)","v":"Registrar"}]
[null,"LN.01.08","Fortalecer los instrumentos para el acceso a mercados en las empresas del sector manufactura"]
[null,"SS.01.08.01","Atención integral de intermediación pertinente para el acceso a mercados por parte de las empresas del sector manufactura no primaria"]
[null,"ISS.01.08.01.01","Número de empresas manufactureras nuevas que participan de las ruedas de negocio para concretar oportunidades de negocio en mercados","DGDE","CALIDAD","ascendente","no acumulado",2021,0,null,18,null,"ND",{"$f":"+AvanceTipo1(F77,G77,K77,M77)","v":"ND"},{"$f":"+AvanceTipo2(F77,G77,I77,J77:K77,L77:M77)","v":"Registrar"}]
[null,"ISS.01.08.01.02","Número de empresas manufactureras que participan de las ruedas de negocio para concretar oportunidades de negocio en mercados","DGDE","COBERTURA","ascendente","no acumulado",2021,0,null,180,null,914,{"$f":"+AvanceTipo1(F78,G78,K78,M78)","v":507.77777777777777},{"$f":"+AvanceTipo2(F78,G78,I78,J78:K78,L78:M78)","v":"Registrar"}]
[null,"OP.02","Incrementar la complejidad de los productos manufacturados en las empresas del sector manufacturero",null,null,null,null,null,null,null,null,null,null,{"$f":"+AvanceObjetivo(N80:N80)","v":83.414634146341456},{"$f":"+AvanceObjetivo(O80:O80)","v":0}]
[null,"IOP.02.01","Porcentaje de participación de las exportaciones de productos de media y alta tecnología en las exportaciones manufactureras","OGEEIE","RESULTADO","ascendente","no acumulado",2019,0.10299999999999999,0.12,0.123,0.1026,0.1026,{"$f":"+AvanceTipo1(F80,G80,K80,M80)","v":83.414634146341456},{"$f":"+AvanceTipo2(F80,G80,I80,J80:K80,L80:M80)","v":-1.9999999999999876}]
[null,"LN.02.01"," Priorizar medidas de apoyo a los productos manufactureros intensivos en tecnología con ventajas comparativas y/o de alto valor agregado con incidencia en la economía nacional"]
[null,"SS.02.01.01","Estudios para la priorización y desarrollo de productos manufactureros intensivos en tecnología con ventajas comparativas y/o productos altamente estratégicos con incidencia en la economía del país"]
[null,"ISS.02.01.01.02","Número de estudios para la priorización de ramas industriales y/o productos de media y alta tecnología concluidos de manera oportuna","DGPAR","CALIDAD","no_definido","minimo permisible",2021,0,null,2,null,1,{"$f":"+AvanceTipo1(F83,G83,K83,M83)","v":0},{"$f":"+AvanceTipo2(F83,G83,I83,J83:K83,L83:M83)","v":"Registrar"}]
[null,"ISS.02.01.01.01","Número de estudios para la priorización de ramas industriales y/o productos de media y alta tecnología","DGPAR","COBERTURA","no_definido","minimo permisible",2021,0,null,2,null,2,{"$f":"+AvanceTipo1(F84,G84,K84,M84)","v":100},{"$f":"+AvanceTipo2(F84,G84,I84,J84:K84,L84:M84)","v":"Registrar"}]
[null,"LN.02.02","Implementar espacios de coordinación público privados para potenciar ramas industriales y/o productos con ventajas comparativas en las empresas del sector manufactura"]
[null,"SS.02.02.01","Mesas de trabajo por ramas industriales y/o productos de media y alta tecnología, aprovechando las ventajas comparativas del país"]
[null,"ISS.02.02.01.02","Número de mesas de trabajo descentralizadas en ramas industriales y/o productos de media y alta tecnología instaladas con participación de representantes de MYPE regionales de manera continua","DGPAR","CALIDAD","no_definido","minimo permisible",2021,0,null,4,null,4,{"$f":"+AvanceTipo1(F87,G87,K87,M87)","v":100},{"$f":"+AvanceTipo2(F87,G87,I87,J87:K87,L87:M87)","v":"Registrar"}]
[null,"ISS.02.02.01.01","Número de mesas de trabajo en ramas industriales y/o productos de media y alta tecnología instalados","DGPAR","COBERTURA","no_definido","minimo permisible",2021,0,null,4,null,4,{"$f":"+AvanceTipo1(F88,G88,K88,M88)","v":100},{"$f":"+AvanceTipo2(F88,G88,I88,J88:K88,L88:M88)","v":"Registrar"}]
[null,"LN.02.03","Mejorar mecanismos para incentivar la inversión en productos industriales intensivos en capital con ventajas comparativas para las empresas del sector manufactura"]
[null,"SS.02.03.01","Desarrollo de un portafolio de proyectos de inversión empresarial para ramas industriales y/o productos de media y alta tecnología, como promoción de la inversión extranjera en el Perú"]
[null,"ISS.02.03.01.02","Número de empresas internacionales que manifiestan interés en instalarse luego de participar en el programa de atracción de inversiones","DGDE","CALIDAD","ascendente","no acumulado",2021,0,null,"ND",null,"ND",{"$f":"+AvanceTipo1(F91,G91,K91,M91)","v":"ND"},{"$f":"+AvanceTipo2(F91,G91,I91,J91:K91,L91:M91)","v":"Registrar"}]
[null,"ISS.02.03.01.01","Número de acciones pertinentes de promoción del portafolio de proyectos, para la atracción de inversión extranjera en ramas industriales y/o productos de media y alta tecnología","DGDE","COBERTURA","ascendente","no acumulado",2021,0,null,"ND",null,"ND",{"$f":"+AvanceTipo1(F92,G92,K92,M92)","v":"ND"},{"$f":"+AvanceTipo2(F92,G92,I92,J92:K92,L92:M92)","v":"Registrar"}]
[null,"SS.02.03.02"," Instrumentos de apoyo financieros y no financieros para la obtención de capital de trabajo de manera oportuna en empresas de manufactura no primaria de media y alta tecnología que se incorporan a las cadenas globales de valor"]
[null,"ISS.02.03.02.02","Porcentaje de empresas que acceden de forma oportuna a instrumentos de apoyo financieros y no financieros para la obtención de capital de trabajo en empresas de manufactura no primaria de media y alta tecnología","DGDE","COBERTURA","no_definido","minimo permisible",2021,0,null,"ND",null,"ND",{"$f":"+AvanceTipo1(F94,G94,K94,M94)","v":"ND"},{"$f":"+AvanceTipo2(F94,G94,I94,J94:K94,L94:M94)","v":"Registrar"}]
[null,"ISS.02.03.02.01","Número de Instrumentos de apoyo financieros y no financieros para la obtención de capital de trabajo en empresas de manufactura no primaria de media y alta tecnología","DGDE","COBERTURA","no_definido","minimo permisible",2021,0,null,"ND",null,"ND",{"$f":"+AvanceTipo1(F95,G95,K95,M95)","v":"ND"},{"$f":"+AvanceTipo2(F95,G95,I95,J95:K95,L95:M95)","v":"Registrar"}]
[null,"LN.02.04","Mejorar los mecanismos para la investigación, desarrollo e innovación (I+D+i) en las empresas del sector manufactura"]
[null,"SS.02.04.01","Servicios tecnológicos y de innovación en ramas industriales y/o productos con valor agregado que participan en cadenas globales de valo"]
[null,"ISS.02.04.01.01","Número de empresas de ramas industriales y/o productos de media y alta tecnología que reciben servicios tecnológicos y de innovación en ramas industriales y/o productos con valor agregado que participan en cadenas globales de valor","ITP","CALIDAD","ascendente","no acumulado",2021,0,null,"ND",null,"ND",{"$f":"+AvanceTipo1(F98,G98,K98,M98)","v":"ND"},{"$f":"+AvanceTipo2(F98,G98,I98,J98:K98,L98:M98)","v":"Registrar"}]
[null,"ISS.02.04.01.02","Número de instrumentos de transferencia tecnológica y de innovación para ramas industriales y/o productos de media y alta tecnología","ITP","COBERTURA","no_definido","minimo permisible",2021,0,null,"ND",null,"ND",{"$f":"+AvanceTipo1(F99,G99,K99,M99)","v":"ND"},{"$f":"+AvanceTipo2(F99,G99,I99,J99:K99,L99:M99)","v":"Registrar"}]
[null,"SS.02.04.02","Difusión de los incentivos a la investigación científica, desarrollo tecnológico e innovación (I+D+i) en empresas de manufactura no primaria de media y alta tecnología"]
[null,"ISS.02.04.02.01","Número de empresas de ramas industriales y/o productos de media y alta tecnología que aplican a los incentivos a la investigación científica, desarrollo tecnológico e innovación (I+D+i) en empresas de manufactura no primaria de media y alta tecnología","ITP","CALIDAD","ascendente","no acumulado",2021,0,null,"ND",28,144,{"$f":"+AvanceTipo1(F101,G101,K101,M101)","v":"ND"},{"$f":"+AvanceTipo2(F101,G101,I101,J101:K101,L101:M101)","v":"Registrar"}]
[null,"ISS.02.04.02.02","Número de empresas que participan en acciones de difusión de los incentivos a la investigación científica, desarrollo tecnológico e innovación (I+D+i) en empresas de manufactura no primaria de media y alta tecnología","ITP","COBERTURA","ascendente","no acumulado",2021,0,null,"ND",124,124,{"$f":"+AvanceTipo1(F102,G102,K102,M102)","v":"ND"},{"$f":"+AvanceTipo2(F102,G102,I102,J102:K102,L102:M102)","v":"Registrar"}]
[null,"SS.02.04.03"," Fondos para proyectos y actividades de investigación, desarrollo e innovación (I+D+i)pertinentes, dirigidos a los actores del SINACTI, en el sector manufactura de media y alta tecnología"]
[null,"ISS.02.04.03.01","Porcentaje de fondos captados con pertinencia para la subvención de actividades y proyectos de I+D+i pertinentes, para la industria manufacturera de media y alta tecnología con participación de los actores del SINACTI.","CONCYTEC - DGPAR","CALIDAD","ascendente","no acumulado",2021,0,null,1E-3,0.22869999999999999,4.3E-3,{"$f":"+AvanceTipo1(F104,G104,K104,M104)","v":430},{"$f":"+AvanceTipo2(F104,G104,I104,J104:K104,L104:M104)","v":"Registrar"}]
[null,"ISS.02.04.03.02","Número de entidades públicas y privadas del SINACTI beneficiarias de los fondos captados","CONCYTEC - PROINNOVATE","COBERTURA","ascendente","no acumulado",2021,0,null,4,22,42,{"$f":"+AvanceTipo1(F105,G105,K105,M105)","v":1050},{"$f":"+AvanceTipo2(F105,G105,I105,J105:K105,L105:M105)","v":"Registrar"}]
[null,"LN.02.05","Fortalecer la cultura y los ecosistemas de innovación a nivel nacional y descentralizados"]
[null,"SS.02.05.01","Fondos concursables orientados al fortalecimiento del ecosistema de innovación"]
[null,"ISS.02.05.01.02","Número de empresas regionales que acceden a fondos concursables con pertinencia e implementan proyectos de emprendimiento e innovación.","PROINNOVATE","CALIDAD","no_definido","minimo permisible",2021,30,null,40,null,224,{"$f":"+AvanceTipo1(F108,G108,K108,M108)","v":100},{"$f":"+AvanceTipo2(F108,G108,I108,J108:K108,L108:M108)","v":"Registrar"}]
[null,"ISS.02.05.01.01","Número de proyectos para el fortalecimiento de ecosistemas de innovación","PROINNOVATE","COBERTURA","ascendente","no acumulado",2021,120,null,135,null,188,{"$f":"+AvanceTipo1(F109,G109,K109,M109)","v":139.25925925925927},{"$f":"+AvanceTipo2(F109,G109,I109,J109:K109,L109:M109)","v":"Registrar"}]
[null,"LN.02.06","Desarrollar líneas de apoyo financieras y no financieras para la implementación de estándares de calidad en productos de las empresas del sector manufactura"]
[null,"SS.02.06.01","Instrumentos de apoyo financiero y no financiero para la implementación de estándares de calidad en ramas industriales y/o productos de media y alta tecnología"]
[null,"ISS.02.06.01.02","Porcentaje de empresas que acceden a instrumentos de apoyo financiero y no financieros para la adopción de estándares de calidad en ramas industriales y/o productos de media y alta tecnología implementados","DGDE","CALIDAD","ascendente","no acumulado",2021,0,null,"ND",null,"ND",{"$f":"+AvanceTipo1(F112,G112,K112,M112)","v":"ND"},{"$f":"+AvanceTipo2(F112,G112,I112,J112:K112,L112:M112)","v":"Registrar"}]
[null,"ISS.02.06.01.01","Número de instrumentos de apoyo financiero y no financieros para la adopción de estándares de calidad en ramas industriales y/o productos de media y alta tecnología implementados","DGDE","COBERTURA","no_definido","minimo permisible",2021,0,null,"ND",null,"ND",{"$f":"+AvanceTipo1(F113,G113,K113,M113)","v":"ND"},{"$f":"+AvanceTipo2(F113,G113,I113,J113:K113,L113:M113)","v":"Registrar"}]
[null,"LN.02.07","Implementar estrategias comerciales articuladas a las cadenas globales de valor para las empresas del sector manufactura"]
[null,"SS.02.07.01","Asistencia técnica integral en la formación de cadenas logísticas desde los centros de producción o distribución hasta los puertos y viceversa para productos manufacturados de media y alta tecnología"]
[null,"ISS.02.07.01.02","Porcentaje de grado de satisfacción respecto de las asistencias técnicas en formación de cadenas logísticas recibidas","MTC","CALIDAD","ascendente","no acumulado",2021,0,null,0.8,null,"ND",{"$f":"+AvanceTipo1(F116,G116,K116,M116)","v":"ND"},{"$f":"+AvanceTipo2(F116,G116,I116,J116:K116,L116:M116)","v":"Registrar"}]
[null,"ISS.02.07.01.01","Número de asistencias técnicas efectuadas para la formación de cadenas logísticas integrales","MTC","COBERTURA","ascendente","no acumulado",2021,0,null,2,null,"ND",{"$f":"+AvanceTipo1(F117,G117,K117,M117)","v":"ND"},{"$f":"+AvanceTipo2(F117,G117,I117,J117:K117,L117:M117)","v":"Registrar"}]
[null,"SS.02.07.02","Programa de fortalecimiento de capacidades en temas de comercio exterior para las empresas manufactureras no primarias de media y alta tecnología"]
[null,"ISS.02.07.02.01","Número de empresas manufactureras no primarias de media y alta tecnología, de las regiones, que reciben servicios de fortalecimiento de capacidades en comercio exterior para impulsar su la internacionalización","MINCETUR","CALIDAD","ascendente","no acumulado",2021,0,null,10,169,212,{"$f":"+AvanceTipo1(F119,G119,K119,M119)","v":2120},{"$f":"+AvanceTipo2(F119,G119,I119,J119:K119,L119:M119)","v":"Registrar"}]
[null,"ISS.02.07.02.02","Número de empresas manufactureras no primarias de media y alta tecnología que reciben servicios de fortalecimiento de capacidades en comercio exterior para impulsar su internacionalización.","MINCETUR","COBERTURA","no_definido","minimo permisible",2021,0,null,50,473,699,{"$f":"+AvanceTipo1(F120,G120,K120,M120)","v":100},{"$f":"+AvanceTipo2(F120,G120,I120,J120:K120,L120:M120)","v":"Registrar"}]
[null,"LN.02.08","Coordinar la construcción de oferta formativa para la industria manufacturera vinculada a la identificación necesidades de media y alta tecnología"]
[null,"SS.02.08.01","Oferta formativa vinculada a la media y alta tecnología para la industria manufacturera."]
[null,"ISS.02.08.01.02","Número de instituciones que implementan oferta formativa vinculados a la media y alta tecnología","MINEDU","CALIDAD","ascendente","no acumulado",2021,0,null,"ND",3,6,{"$f":"+AvanceTipo1(F123,G123,K123,M123)","v":"ND"},{"$f":"+AvanceTipo2(F123,G123,I123,J123:K123,L123:M123)","v":"Registrar"}]
[null,"ISS.02.08.01.01","Número de nueva oferta formativa vinculada a la media y alta tecnología en el sector manufactura","MINEDU","COBERTURA","no_definido","minimo permisible",2021,0,null,"ND",0,0,{"$f":"+AvanceTipo1(F124,G124,K124,M124)","v":"ND"},{"$f":"+AvanceTipo2(F124,G124,I124,J124:K124,L124:M124)","v":"Registrar"}]
[null,"SS.02.08.02","Fondos de cofinanciamiento para formación de trabajadores/as en competencias para actividades de manufactura de media y alta tecnología"]
[null,"ISS.02.08.02.01","Número de empresas que reciben los fondos de cofinanciamiento para formación de competencias para actividades de manufactura de media y alta tecnología","DGDE","CALIDAD","ascendente","no acumulado",2021,0,null,"ND",null,"ND",{"$f":"+AvanceTipo1(F126,G126,K126,M126)","v":"ND"},{"$f":"+AvanceTipo2(F126,G126,I126,J126:K126,L126:M126)","v":"Registrar"}]
[null,"ISS.02.08.02.02","Número de fondos de cofinanciamiento implementados para formación de trabajadores/as en competencias para actividades de manufactura de media y alta tecnología.","DGDE","COBERTURA","no_definido","minimo permisible",2021,0,null,"ND",null,"ND",{"$f":"+AvanceTipo1(F127,G127,K127,M127)","v":"ND"},{"$f":"+AvanceTipo2(F127,G127,I127,J127:K127,L127:M127)","v":"Registrar"}]
[null,"OP.03"," Incrementar la infraestructura productiva industrial adecuada y servicios especializados para las empresas manufactureras",null,null,null,null,null,null,null,null,null,null,{"$f":"+AvanceObjetivo(N129:N130)","v":"ND"},{"$f":"+AvanceObjetivo(O129:O130)","v":0}]
[null,"IOP.03.01","Porcentaje de ocupación acumulada de empresas manufactureras no primarias instaladas en los parques industriales que forman parte del SNPI","PNDP","RESULTADO","ascendente","acumulado",2022,0,0,"ND",0,0,{"$f":"+AvanceTipo1(F129,G129,K129,M129)","v":"ND"},{"$f":"+AvanceTipo2(F129,G129,I129,J129:K129,L129:M129)","v":"ND*"}]
[null,"IOP.03.02","Porcentaje acumulado de empresas manufactureras no primarias instaladas en los parques industriales que forman parte del SNPI que reciben servicios especializados","PNDP","RESULTADO","ascendente","acumulado",2022,0,0,"ND",0,0,{"$f":"+AvanceTipo1(F130,G130,K130,M130)","v":"ND"},{"$f":"+AvanceTipo2(F130,G130,I130,J130:K130,L130:M130)","v":"ND*"}]
[null,"LN.03.01","Implementar los proyectos de inversión de parques industriales articulados con la Estrategia Nacional de Parques industriales para las empresas del sector manufactura"]
[null,"SS.03.01.01"," Asistencia técnica para el desarrollo de infraestructura productiva, de transporte, logística, servicios básicos y complementarios"]
[null,"ISS.03.01.01.02","Porcentaje de autoridades, funcionarios/as y empresas que consideran un alto grado de satisfacción sobre las asistencias técnicas para promover proyectos de infraestructura productiva,de transporte, logística, servicios básicos y complementarios","PNDP","CALIDAD","no_definido","minimo permisible",2021,0,null,0.7,0.67,0.82,{"$f":"+AvanceTipo1(F133,G133,K133,M133)","v":100},{"$f":"+AvanceTipo2(F133,G133,I133,J133:K133,L133:M133)","v":"Registrar"}]
[null,"ISS.03.01.01.01","Número de asistencias técnicas para promover proyectos de infraestructura productiva, de transporte, logística, servicios básicos y complementario","PNDP","COBERTURA","no_definido","minimo permisible",2021,6,null,6,3,11,{"$f":"+AvanceTipo1(F134,G134,K134,M134)","v":100},{"$f":"+AvanceTipo2(F134,G134,I134,J134:K134,L134:M134)","v":"Registrar"}]
[null,"SS.03.01.02","Servicio de gestión pertinente de cartera de parques industriales"]
[null,"ISS.03.01.02.02","Porcentaje de pequeñas y medianas empresas manufactureras que acceden a parques industriales incorporados al Sistema Nacional de Parques Industriales","PNDP","CALIDAD","ascendente","no acumulado",2021,0,null,"ND",0,0,{"$f":"+AvanceTipo1(F136,G136,K136,M136)","v":"ND"},{"$f":"+AvanceTipo2(F136,G136,I136,J136:K136,L136:M136)","v":"Registrar"}]
[null,"ISS.03.01.02.01","Número de parques industriales incorporados al Sistema Nacional de Parques Industriales","PNDP","COBERTURA","no_definido","minimo permisible",2021,0,null,"ND",1,0,{"$f":"+AvanceTipo1(F137,G137,K137,M137)","v":"ND"},{"$f":"+AvanceTipo2(F137,G137,I137,J137:K137,L137:M137)","v":"Registrar"}]
[null,"LN.03.02","Coordinar acciones para la implementación de los servicios públicos e infraestructura complementaria adecuados en las empresas del sector manufactura"]
[null,"SS.03.02.01","Programa de Servicios públicos e infraestructura complementaria pertinentes adecuada en áreas industriales"]
[null,"ISS.03.02.01.02","Número de empresas regionales que reciben la provisión de servicios públicos e infraestructura complementaria implementados en áreas industriales","PNDP","CALIDAD","ascendente","no acumulado",2021,0,null,"ND","ND","ND",{"$f":"+AvanceTipo1(F140,G140,K140,M140)","v":"ND"},{"$f":"+AvanceTipo2(F140,G140,I140,J140:K140,L140:M140)","v":"Registrar"}]
[null,"ISS.03.02.01.01","Número de servicios públicos e infraestructura complementaria implementados en áreas industriales","PNDP","COBERTURA","no_definido","minimo permisible",2021,0,null,2,"ND","ND",{"$f":"+AvanceTipo1(F141,G141,K141,M141)","v":"ND"},{"$f":"+AvanceTipo2(F141,G141,I141,J141:K141,L141:M141)","v":"Registrar"}]
[null,"SS.03.02.02","Servicio de Identificación de brechas en infraestructura productiva"]
[null,"ISS.03.02.02.02","Número de informes de identificación de brechas en infraestructura productiva en regiones","OGPPM","CALIDAD","no_definido","minimo permisible",2021,0,null,1,null,2,{"$f":"+AvanceTipo1(F143,G143,K143,M143)","v":100},{"$f":"+AvanceTipo2(F143,G143,I143,J143:K143,L143:M143)","v":"Registrar"}]
[null,"ISS.03.02.02.01","Número de informes de identificación de brechas en infraestructura productiva","OGPPM","COBERTURA","no_definido","minimo permisible",2021,0,null,2,null,2,{"$f":"+AvanceTipo1(F144,G144,K144,M144)","v":100},{"$f":"+AvanceTipo2(F144,G144,I144,J144:K144,L144:M144)","v":"Registrar"}]
[null,"SS.03.02.03","Asistencia Técnica para la inclusión de proyectos industriales en los Planes de Ordenamiento Territorial y Planes para el Acondicionamiento Territorial y Desarrollo Urbano"]
[null,"ISS.03.02.03.02","Porcentaje de gobiernos regionales y locales con alto grado de satisfacción sobre las asistencias técnicas para la inclusión de proyectos industriales en sus respectivas regiones y localidades","PNDP","CALIDAD","ascendente","no acumulado",2021,0,null,0.7,0.67,0.82,{"$f":"+AvanceTipo1(F146,G146,K146,M146)","v":117.14285714285715},{"$f":"+AvanceTipo2(F146,G146,I146,J146:K146,L146:M146)","v":"Registrar"}]
[null,"ISS.03.02.03.01","Número de Asistencias técnicas para la inclusión de proyectos industriales en los gobiernos locales y regionales","PNDP","COBERTURA","no_definido","minimo permisible",2021,4,null,5,3,11,{"$f":"+AvanceTipo1(F147,G147,K147,M147)","v":100},{"$f":"+AvanceTipo2(F147,G147,I147,J147:K147,L147:M147)","v":"Registrar"}]
[null,"LN.03.03","Mejorar la diversidad, accesibilidad y cobertura pública y privada de servicios de infraestructura de la calidad, desarrollo productivo, innovación, digitalización, transferencia y extensionismo tecnológico en las empresas del sector manufactura"]
[null,"SS.03.03.01"," Servicio de elaboración de normas técnicas peruanas (NTP) u otros documentos de normalización orientados a la demanda"]
[null,"ISS.03.03.01.01","Porcentaje de Número de Normas Técnicas Peruanas, u otros documentos de normalización de adopción internacional, desarrollados con la participación de los agentes interesados","INACAL","CALIDAD","no_definido","maximo permisible",2021,0,null,1,1,1,{"$f":"+AvanceTipo1(F150,G150,K150,M150)","v":100},{"$f":"+AvanceTipo2(F150,G150,I150,J150:K150,L150:M150)","v":"Registrar"}]
[null,"SS.03.03.02","Servicio de acreditación orientada a la demanda de organismos de evaluación de la conformidad (OEC)"]
[null,"ISS.03.03.02.01","Porcentaje de acreditaciones emitidas a los Organismos de Evaluación de la Conformidad (OEC) para servicios al sector manufacturero cumpliendo con los plazos establecidos","INACAL","CALIDAD","ascendente","no acumulado",2021,0,null,0.9,0.92,0.97,{"$f":"+AvanceTipo1(F152,G152,K152,M152)","v":107.77777777777777},{"$f":"+AvanceTipo2(F152,G152,I152,J152:K152,L152:M152)","v":"Registrar"}]
[null,"ISS.03.03.02.02","Número de acreditaciones emitidas a los Organismos de Evaluación de la Conformidad (OEC) para servicios al sector manufacturero.","INACAL","COBERTURA","no_definido","minimo permisible",2021,20,null,20,38,35,{"$f":"+AvanceTipo1(F153,G153,K153,M153)","v":100},{"$f":"+AvanceTipo2(F153,G153,I153,J153:K153,L153:M153)","v":"Registrar"}]
[null,"SS.03.03.03","Servicios metrológicos orientados a la demanda de las entidades públicas y privadas"]
[null,"ISS.03.03.03.01","Porcentaje de servicios de metrología para las empresas del sector manufacturero que se realizan dentro de los plazos establecidos","INACAL","CALIDAD","ascendente","no acumulado",2021,0,null,0.9,0.9,0.9,{"$f":"+AvanceTipo1(F155,G155,K155,M155)","v":100},{"$f":"+AvanceTipo2(F155,G155,I155,J155:K155,L155:M155)","v":"Registrar"}]
[null,"ISS.03.03.03.02","Número de servicios de metrología para las empresas sector manufacturero realizados en el año","INACAL","COBERTURA","ascendente","no acumulado",2021,8106,null,8442,352,301,{"$f":"+AvanceTipo1(F156,G156,K156,M156)","v":3.565505804311774},{"$f":"+AvanceTipo2(F156,G156,I156,J156:K156,L156:M156)","v":"Registrar"}]
[null,"LN.03.04","Optimizar la oferta de servicios de la Red-CITES para las empresas del sector manufactura"]
[null,"SS.03.04.01","Implementación de CITES con pertinencia para el acceso de las empresas del sector manufactura"]
[null,"ISS.03.04.01.01","Porcentaje de proyectos de CITEs ejecutados e implementados en el plazo establecido","ITP","CALIDAD","ascendente","no acumulado",2021,0.9,null,0.9,0,0,{"$f":"+AvanceTipo1(F159,G159,K159,M159)","v":0},{"$f":"+AvanceTipo2(F159,G159,I159,J159:K159,L159:M159)","v":"Registrar"}]
[null,"ISS.03.04.01.02","Número de empresas de manufactura que acceden a servicios de los proyectos de CITES ejecutados e implementados.","ITP","COBERTURA","ascendente","no acumulado",2021,0,null,500,0,0,{"$f":"+AvanceTipo1(F160,G160,K160,M160)","v":0},{"$f":"+AvanceTipo2(F160,G160,I160,J160:K160,L160:M160)","v":"Registrar"}]
[null,"OP.04","Mejorar la calidad del entorno institucional y regulatorio para el desarrollo de actividades manufactureras",null,null,null,null,null,null,null,null,null,null,{"$f":"+AvanceObjetivo(N162:N162)","v":"ND"},{"$f":"+AvanceObjetivo(O162:O162)","v":"ND"}]
[null,"IOP.04.01","Porcentaje de empresarios/as manufactureros que están de acuerdo con el entorno institucional y regulatorio","OGEEIE","RESULTADO","ascendente","no acumulado",2017,0.18,0.24399999999999999,0.27600000000000002,"ND","ND",{"$f":"+AvanceTipo1(F162,G162,K162,M162)","v":"ND"},{"$f":"+AvanceTipo2(F162,G162,I162,J162:K162,L162:M162)","v":"ND"}]
[null,"LN.04.01","Fortalecer las capacidades para el diseño, implementación, seguimiento y evaluación de políticas de desarrollo productivo a los servidores públicos, mejorando los niveles de coordinación y articulación de los tres niveles de gobierno"]
[null,"SS.04.01.01","Programa de fortalecimiento de capacidades a los/asservidores/as públicos/asvinculados/as al sector producción, en los tres niveles de gobierno, en desarrollo productivo con enfoque de sostenibilidad, mejorando los niveles de coordinación y articulación de los tres niveles de gobierno"]
[null,"ISS.04.01.01.02","Porcentaje de servidores/as públicos/as con alto grado de satisfacción sobre las capacitaciones recibidas","DGPAR","CALIDAD","ascendente","no acumulado",2021,0,null,0.8,null,"ND",{"$f":"+AvanceTipo1(F165,G165,K165,M165)","v":"ND"},{"$f":"+AvanceTipo2(F165,G165,I165,J165:K165,L165:M165)","v":"Registrar"}]
[null,"ISS.04.01.01.01","Número de capacitaciones dirigidas a los/as servidores/as públicos/as vinculados/as al sector producción en los tres niveles de gobierno en desarrollo productivo.","DGPAR","COBERTURA","no_definido","minimo permisible",2021,0,null,5,null,8,{"$f":"+AvanceTipo1(F166,G166,K166,M166)","v":100},{"$f":"+AvanceTipo2(F166,G166,I166,J166:K166,L166:M166)","v":"Registrar"}]
[null,"LN.04.02","Mejorar la calidad del marco normativo para impulsar las actividades de las empresas del sector manufactura"]
[null,"SS.04.02.01","Elaboración de propuestas normativas, regulación industrial y reglamentación técnica con pertinencia"]
[null,"ISS.04.02.01.02","Porcentaje de empresas que consideran pertinentes las propuestas normativas de regulación industrial y reglamentos técnicos de productos manufacturados aprobado","DGPAR","CALIDAD","ascendente","no acumulado",2021,0,null,0.8,"ND","ND",{"$f":"+AvanceTipo1(F169,G169,K169,M169)","v":"ND"},{"$f":"+AvanceTipo2(F169,G169,I169,J169:K169,L169:M169)","v":"Registrar"}]
[null,"ISS.04.02.01.01","Número de propuestas normativas de regulación industrial y reglamentos técnicos de productos manufacturados aprobados","DGPAR","COBERTURA","no_definido","maximo permisible",2021,5,null,5,3,2,{"$f":"+AvanceTipo1(F170,G170,K170,M170)","v":100},{"$f":"+AvanceTipo2(F170,G170,I170,J170:K170,L170:M170)","v":"Registrar"}]
[null,"LN.04.03","Optimizar procesos y trámites a nivel institucional para la reducción de las barreras regulatorias, con énfasis en el gobierno electrónico"]
[null,"SS.04.03.01","Sistemas y aplicativos informáticos desarrollados e implementados en el Ministerio de la Producción con pertinencia para facilitar tramites a las empresas"]
[null,"ISS.04.03.01.02","Porcentaje de empresas que utilizan los sistemas y aplicativos informáticos desarrollados e implementados en PRODUCE para facilitar tramites a las empresas","OGTI","CALIDAD","ascendente","no acumulado",2021,0,null,0.1,0,0.21340000000000001,{"$f":"+AvanceTipo1(F173,G173,K173,M173)","v":213.39999999999998},{"$f":"+AvanceTipo2(F173,G173,I173,J173:K173,L173:M173)","v":"Registrar"}]
[null,"ISS.04.03.01.01","Número de Sistemas y aplicativos informáticos desarrollados e implementados en PRODUCE para facilitar tramites a las empresas","OGTI","COBERTURA","ascendente","no acumulado",2021,15,null,17,0,2,{"$f":"+AvanceTipo1(F174,G174,K174,M174)","v":11.76470588235294},{"$f":"+AvanceTipo2(F174,G174,I174,J174:K174,L174:M174)","v":"Registrar"}]
[]
[null,null,"Indice de gestión de la política nacional",null,null,null,null,null,null,null,null,null,null,null,{"$f":"+IFERROR(AVERAGEIFS($O$15:$O$174,$B$15:$B$174,\"=OP*\"),\"ND\")","v":0}]
[]
[]
[null,"ALERTAS IDENTIFICADAS"]
[null,"OP. 01: Se presentan las siguientes alertas en los indicadores de servicios que se vienen implementando en el marco del primer objetivo prioritario. Se presentan 9 indicadores donde se reportan avances entre 0 y 75%, 4 indicadores con un nivel de avance de entre 75 y 95%. "]
[null,"Asimismo, se presentan 10 indicadores en los cuales no se dispone de información."]
[null,"OP. 02: Se presenta 1 indicador donde se reporta un avance entre 0 y 75%, 1 indicador con un nivel de avance de entre 75 y 95%; y,  16 indicadores con información no disponible."]
[null,"OP. 03: Se presentan 3 indicadores con un avance entre 0 y 75% y 6 indicadores con información no disponible."]
[null,"OP. 04: Se presenta 1 indicador con un avance entre 0 y 75% y 3 indicadores con información no disponible."]
[null,"Sobre las fuente de información: Los indicadores que miden el avance de los objetivos prioritarios como el IOP.04 y otros indicadores de servicios, requieren como fuente de información la Encuesta Nacional de Empresas. La última encuesta disponible es para el período 2019."]
[null,"Asimismo, existen indicadores de servicios que requieren fuentes de información que se obtienen a través de encuestas o estudios anuales, en ese sentido la recolección de información se puede ver retrasada en tanto al seguimiento."]
[null,"Sobre la información no disponible: Se reportan indicadores que no tienen información disponible, esto es en parte por la naturaleza del presente seguimiento, en tanto, la política fue aprobada en noviembre de 2022 y en la medida que se previó un tiempo para la implementación"]
[null,"de servicios, no se programaron logros esperados para el 2023. Asimismo, por la reciente implementación de la política las entidades y áreas responsables vienen implementando acciones para brindar los servicios que prevé la PNDI."]
[null,"Sobre el Avance Tipo 2: Se presentan un nivel de avance menor al 75%, en tanto, este indicador reporta la evolución de la implementación a nivel temporal. Tomando en cuenta la fecha de aprobación de la PNDI, este indicador no correspondería ser evaluado."]
[null,"Nota: los indicadores mencionados en las alertas incluyen indicadores de servicios e indicadores de objetivo prioritarios."]